fUSD/lending_fUSD_20251211
["ID","MTS","AMOUNT","RATE_DAILY","PERIOD"]
[398285355,1765491046143,-500.0,0.00041799,30]
[398285357,1765491046152,-3143.66818931,0.000418,30]
[398285359,1765491046161,-12639.87,0.000418,30]
[398285361,1765491046171,-161.99095101,0.000418,30]
[398285363,1765491046183,-338.00904899,0.000418,30]
[398285365,1765491046193,-381.28605101,0.000418,30]
[398285367,1765491046205,-4592.69195026,0.000418,30]
[398285376,1765491046290,-500.0,0.00041641,30]
[398285378,1765491046300,-500.0,0.00041799,30]
[398285380,1765491046310,-7665.89199873,0.000418,30]
[398285382,1765491046319,-41.615864,0.000418,30]
[398285385,1765491046335,-460.48870642,0.000418,30]
[398285387,1765491046345,-392.92342057,0.000418,30]
[398285389,1765491046357,-12246.94657943,0.000418,30]
[398285391,1765491046367,-5001.01519999,0.000418,30]
[398285394,1765491046383,-6351.32468255,0.000418,30]
[398288963,1765491962444,2500.0,0.000198,120]
[398288966,1765492008128,-200.96659299,0.00017999,2]
[398288967,1765492008154,-173.39656809,0.00017999,2]
[398288968,1765492008180,-492.02867116,0.00017999,2]
[398288969,1765492008208,-500.0,0.00017999,2]
[398288970,1765492008233,-390.77027399,0.00017999,2]
[398288971,1765492008260,-500.0,0.00017999,2]
[398288972,1765492008285,-500.0,0.00017999,2]
[398288973,1765492008311,-500.0,0.00017999,2]
[398288974,1765492008339,-500.0,0.00017999,2]
[398288975,1765492008366,-500.0,0.00017999,2]
[398288976,1765492008394,-500.0,0.00017999,2]
[398288977,1765492008424,-500.0,0.00017999,2]
[398288978,1765492008451,-137.62411146,0.00017999,2]
[398288997,1765492231600,-352.58316129,0.00016899,2]
[398288999,1765492231610,-124.41684771,0.00016998,2]
[398289002,1765492231657,-175.58315229,0.00016998,2]
[398289003,1765492231667,-1200.0,0.00016998,2]
[398289004,1765492231677,-500.0,0.00016999,2]
[398289005,1765492231686,-116.1521084,0.00016999,2]
[398289006,1765492231717,-383.8478916,0.00016999,2]
[398289007,1765492231727,-146.04075961,0.00016999,2]
[398289008,1765492231738,-353.95924039,0.00016999,2]
[398289009,1765492231748,-324.56528246,0.00016999,2]
[398289010,1765492231760,-500.0,0.00016999,2]
[398289011,1765492231770,-500.0,0.00016999,2]
[398289012,1765492231780,-298.54857999,0.00016999,2]
[398289013,1765492231796,-201.45142001,0.00016999,2]
[398289014,1765492231805,-500.0,0.00016999,2]
[398289015,1765492231815,-500.0,0.00016999,2]
[398289016,1765492231827,-500.0,0.00016999,2]
[398289017,1765492231836,-500.0,0.00016999,2]
[398289019,1765492231846,-500.0,0.00016999,2]
[398289021,1765492231856,-500.0,0.00016999,2]
[398289023,1765492231865,-500.0,0.00016999,2]
[398289025,1765492231875,-500.0,0.00016999,2]
[398289027,1765492231885,-500.0,0.00016999,2]
[398289029,1765492231895,-500.0,0.00016999,2]
[398289031,1765492231905,-9935.15454134,0.00017,2]
[398289057,1765492232135,-494.91920915,0.00017,2]
[398289060,1765492232164,-3554.12401238,0.00017,2]
[398289063,1765492232176,-653.82212702,0.00017,2]
[398289098,1765492237635,-34881.87160366,0.00017,2]
[398289099,1765492237646,-250.0,0.00017,2]
[398289100,1765492237656,-154.91,0.00017195,2]
[398289101,1765492237665,-688.07,0.0001799,2]
[398289102,1765492237675,-688.07,0.0001799,2]
[398289103,1765492237684,-344.42006981,0.00017999,2]
[398289104,1765492237694,-55369.63192653,0.00018,2]
[398289105,1765492237706,-19100.96425184,0.00018,2]
[398289106,1765492238010,-290.80998479,0.00018,2]
[398289107,1765492238025,-768.69964469,0.00018,2]
[398289115,1765492239876,-9636.31,0.00018,2]
[398289116,1765492239937,-1911.76033256,0.00018,2]
[398289117,1765492240063,-2064.347687,0.00018,2]
[398289118,1765492240076,-8787.65754679,0.00018,2]
[398289119,1765492240088,-8947.21879473,0.00018,2]
[398289120,1765492240100,-8943.78386462,0.00018,2]
[398289121,1765492240111,-9077.54866152,0.00018,2]
[398289122,1765492240123,-8943.84023489,0.00018,2]
[398289123,1765492240138,-2409797.47106683,0.00018,2]
[398289151,1765492244040,-4550.92033776,0.00018,2]
[398289152,1765492244052,-43468.6253791,0.00018,2]
[398289153,1765492244187,-11141.33884815,0.00018,2]
[398289154,1765492244199,-553.85569524,0.00018,2]
[398289155,1765492244214,-7752.24514125,0.00018,2]
[398289156,1765492244223,-420.0,0.00018566,2]
[398289157,1765492244234,-261.20458707,0.00019038,2]
[398289158,1765492244243,-154.91,0.00019105,2]
[398289160,1765492244252,-1185.73966002,0.00019238,2]
[398289162,1765492244262,-3169.40803388,0.00019338,2]
[398289163,1765492244271,-154.91,0.00021016,2]
[398289165,1765492244281,-206.28816381,0.00021733,2]
[398289167,1765492244291,-1185.73965993,0.00021734,2]
[398289169,1765492244301,-3169.4080338,0.00021823,2]
[398289171,1765492244311,-50.0238973,0.00022395,2]
[398289276,1765492245703,-346.9761027,0.00022395,2]
[398289278,1765492245712,-1175.0,0.00022439,2]
[398289280,1765492245722,-154.91,0.00022926,2]
[398289282,1765492245732,-3554.95,0.00023,7]
[398289284,1765492245742,-231.0,0.00023674,2]
[398289286,1765492245751,-536.0,0.00023722,2]
[398289288,1765492245760,-788.0,0.00023769,2]
[398289290,1765492245770,-1185.73965993,0.0002423,2]
[398289292,1765492245779,-3169.4080338,0.00024307,2]
[398289294,1765492245788,-154.91,0.00024837,2]
[398289296,1765492245799,-1185.73965993,0.00026725,2]
[398289298,1765492245808,-154.91,0.00026747,2]
[398289300,1765492245818,-3169.4080338,0.00026792,2]
[398289302,1765492245827,-154.91,0.00028658,2]
[398289304,1765492245836,-1185.73965993,0.00029221,2]
[398289306,1765492245845,-3169.4080338,0.00029277,2]
[398289308,1765492245854,-154.91,0.00030568,2]
[398289310,1765492245864,-1000.0,0.0003141,2]
[398289312,1765492245874,-1185.73965993,0.00031717,2]
[398289314,1765492245884,-3169.4080338,0.00031761,2]
[398289316,1765492245894,-154.91,0.00032479,2]
[398289318,1765492245904,-473.39,0.000329,2]
[398289320,1765492245915,-898.47,0.000329,30]
[398289322,1765492245926,-161.0,0.00033,14]
[398289325,1765492245936,-3554.95,0.00033,14]
[398289327,1765492245946,-200.02889985,0.00033199,2]
[398289329,1765492245956,-1185.73965993,0.00034213,2]
[398289331,1765492245965,-3169.4080338,0.00034246,2]
[398289333,1765492245976,-154.91,0.00034389,2]
[398289335,1765492245986,-200.0,0.00034929,2]
[398289337,1765492245996,-207.4,0.00034929,2]
[398289339,1765492246006,-215.0738,0.00034929,2]
[398289341,1765492246018,-223.0315306,0.00034929,2]
[398289343,1765492246028,-231.28369723,0.00034929,2]
[398289345,1765492246038,-999.0,0.00035015,3]
[398289347,1765492246048,-239.84119403,0.00035194,2]
[398289349,1765492246058,-151.63388952,0.00036195,24]
[398289352,1765492246068,-372.54851962,0.00036563,2]
[398289354,1765492246077,-1185.73965993,0.00036708,2]
[398289356,1765492246087,-3169.4080338,0.00036731,2]
[398289358,1765492246097,-500.0,0.000368,30]
[398289360,1765492246107,-500.0,0.000368,30]
[398289362,1765492246117,-547.0534133,0.000368,30]
[398289364,1765492246126,-500.0,0.000368,30]
[398289366,1765492246135,-504.91597169,0.000368,30]
[398289368,1765492246145,-500.0,0.000368,30]
[398289370,1765492246154,-500.0,0.000368,30]
[398289372,1765492246166,-500.0,0.000368,30]
[398289374,1765492246176,-500.0,0.000368,30]
[398289376,1765492246185,-500.0,0.000368,30]
[398289378,1765492246194,-500.0,0.000368,30]
[398289380,1765492246205,-6980.77302323,0.00036888,60]
[398289382,1765492246215,-151.63388952,0.00037327,26]
[398289384,1765492246224,-200.0,0.00037474,2]
[398289386,1765492246235,-150.0,0.00037726,7]
[398289388,1765492246244,-150.0,0.00037726,7]
[398289390,1765492246253,-150.0,0.00037726,7]
[398289392,1765492246262,-150.0,0.00037726,7]
[398289394,1765492246271,-150.0,0.00037726,7]
[398289396,1765492246280,-150.0,0.00037726,7]
[398289398,1765492246290,-150.0,0.00037726,7]
[398289400,1765492246299,-302.34110853,0.00037757,2]
[398289402,1765492246309,-302.34110853,0.00037757,2]
[398289404,1765492246318,-1000.0,0.00037999,2]
[398289406,1765492246328,-151.63388952,0.00038458,27]
[398289408,1765492246337,-12479.85448244,0.00038594,2]
[398289410,1765492246349,-4935.0,0.00038594,2]
[398289961,1765493298666,368.62,0.00013699,2]
[398289963,1765493432004,-150.0,0.00018,7]
[398289964,1765493432015,-368.62,0.00020187,2]
[398289965,1765493432024,-150.09591702,0.00022167,2]
[398289966,1765493432034,-368.62,0.00026676,2]
[398289967,1765493432044,-213.58,0.000283,14]
[398289968,1765493432054,-480.8162296,0.00030839,2]
[398289969,1765493432063,-6161.65800877,0.00031965,2]
[398289996,1765493437896,-4760.34199123,0.00031965,2]
[398289998,1765493437907,-368.62,0.00033165,2]
[398290001,1765493437917,-300.0,0.00033497,3]
[398290003,1765493437928,-2000.0,0.000348,2]
[398290005,1765493437937,-168.0,0.00035586,2]
[398290007,1765493437947,-168.0,0.00035763,2]
[398290009,1765493437957,-9314.09,0.00035763,30]
[398290011,1765493437967,-168.0,0.00035876,2]
[398290013,1765493437978,-168.0,0.00035898,120]
[398290015,1765493437988,-168.0,0.00035931,120]
[398290018,1765493437998,-177.99,0.00036,30]
[398290020,1765493438009,-1290.0,0.0003605,2]
[398290022,1765493438019,-168.0,0.00036058,2]
[398290024,1765493438029,-9824.1738381,0.00036271,2]
[398290026,1765493438040,-456.7561532,0.00036271,2]
[398290027,1765493438050,-161.8611014,0.00036271,2]
[398290028,1765493438059,-168.0,0.00036516,7]
[398290029,1765493438071,-168.0,0.00036646,2]
[398290030,1765493438081,-168.0,0.00036659,120]
[398290031,1765493438092,-700.0,0.00036712,120]
[398290032,1765493438102,-460.56525741,0.000368,30]
[398290033,1765493438112,-168.0,0.00036825,7]
[398290034,1765493438122,-168.0,0.00036854,2]
[398290035,1765493438133,-700.0,0.00036986,120]
[398290036,1765493438143,-627.17,0.00037123,30]
[398290037,1765493438154,-166.66,0.00037195,2]
[398290038,1765493438165,-168.0,0.00037219,2]
[398290039,1765493438174,-168.0,0.00037223,2]
[398290040,1765493438185,-700.0,0.0003726,120]
[398290041,1765493438195,-737.37,0.00037534,120]
[398290042,1765493438205,-278.99424453,0.00037601,15]
[398290043,1765493438216,-500.0,0.00037601,15]
[398290044,1765493438226,-500.0,0.00037601,15]
[398290045,1765493438237,-500.0,0.00037601,15]
[398290046,1765493438248,-500.0,0.00037601,15]
[398290047,1765493438259,-500.0,0.00037601,15]
[398290048,1765493438269,-394.2890391,0.00037601,15]
[398290049,1765493438280,-150.0,0.00037603,7]
[398290050,1765493438290,-224.09869926,0.00037603,7]
[398290051,1765493438300,-150.0,0.00037603,7]
[398290052,1765493438310,-150.0,0.00037603,7]
[398290053,1765493438320,-150.0,0.00037603,7]
[398290054,1765493438331,-150.0,0.00037603,7]
[398290055,1765493438342,-302.34110853,0.00037747,2]
[398290056,1765493438352,-789.95822971,0.00037747,2]
[398290057,1765493438362,-302.34110853,0.00037747,2]
[398290058,1765493438373,-810.89846821,0.00037747,2]
[398290059,1765493438383,-168.0,0.00037907,7]
[398290060,1765493438394,-250.0,0.00037941,2]
[398290061,1765493438405,-168.0,0.00038027,2]
[398290062,1765493438416,-500.0,0.00038092,14]
[398290063,1765493438426,-1016.319,0.00038092,50]
[398290064,1765493438437,-168.0,0.00038181,2]
[398290065,1765493438447,-10032.77488077,0.000382,120]
[398290066,1765493438457,-168.0,0.0003825,2]
[398290067,1765493438467,-8405.5736,0.00038257,2]
[398290068,1765493438478,-500.0,0.00038356,15]
[398290069,1765493438488,-274.79647998,0.00038356,15]
[398290070,1765493438498,-166.66352452,0.00038356,15]
[398290071,1765493438507,-249.27776574,0.00038356,15]
[398290072,1765493438517,-800.0,0.00038356,30]
[398290073,1765493438528,-32426.03212357,0.00038357,2]
[398290074,1765493438543,-2629.97761171,0.00038357,2]
[398290075,1765493438556,-365.91510614,0.00038357,2]
[398290076,1765493438568,-779.24362248,0.00038357,2]
[398290082,1765493440030,-2561.99998,0.00038357,2]
[398290083,1765493440164,-667.55704096,0.00038357,2]
[398290084,1765493440176,-23006.77165954,0.00038357,2]
[398290085,1765493440371,-1876.4,0.00038357,2]
[398290090,1765493443290,-252.73258728,0.00038357,2]
[398290091,1765493443302,-607.79607979,0.00038357,2]
[398290092,1765493443548,-86916.50358853,0.00038357,2]
[398290095,1765493443559,-168.0,0.00038408,7]
[398290097,1765493443569,-500.0,0.00038456,2]
[398290098,1765493443579,-151.0,0.00038457,27]
[398290099,1765493443589,-1111.0,0.00038457,27]
[398290100,1765493443599,-1000.0,0.00038457,27]
[398290101,1765493443609,-500.0,0.00038457,27]
[398290102,1765493443621,-1111.0,0.00038457,27]
[398290103,1765493443632,-719.04747942,0.00038457,27]
[398290104,1765493443641,-1000.0,0.00038457,27]
[398290105,1765493443651,-1111.0,0.00038457,27]
[398290106,1765493443661,-500.0,0.00038457,27]
[398290107,1765493443671,-528.78273018,0.00038457,27]
[398290108,1765493443681,-500.0,0.00038457,27]
[398290109,1765493443690,-1111.0,0.00038457,27]
[398290110,1765493443699,-250.0,0.00038457,27]
[398290111,1765493443709,-1111.0,0.00038457,27]
[398290112,1765493443718,-574.12855637,0.00038457,27]
[398290113,1765493443728,-652.55,0.00038457,27]
[398290114,1765493443737,-620.0,0.00038457,27]
[398290115,1765493443746,-642.94,0.00038457,27]
[398290116,1765493443756,-391.42138068,0.00038457,27]
[398290117,1765493443765,-595.37131296,0.00038457,27]
[398290119,1765493443775,-1000.0,0.00038457,27]
[398290121,1765493443784,-1000.0,0.00038457,27]
[398290123,1765493443793,-617.40005154,0.00038457,27]
[398290125,1765493443803,-151.0,0.00038457,27]
[398290127,1765493443812,-1000.0,0.00038457,27]
[398290129,1765493443821,-640.24385345,0.00038457,27]
[398290131,1765493443830,-151.0,0.00038457,27]
[398290133,1765493443840,-151.0,0.00038457,27]
[398290135,1765493443849,-1000.0,0.00038457,27]
[398290137,1765493443860,-663.93287602,0.00038457,27]
[398290139,1765493443869,-151.0,0.00038457,27]
[398290141,1765493443878,-688.49839244,0.00038457,27]
[398290143,1765493443887,-1000.0,0.00038457,27]
[398290145,1765493443896,-151.0,0.00038457,27]
[398290147,1765493443905,-713.97283296,0.00038457,27]
[398290149,1765493443915,-1000.0,0.00038457,27]
[398290151,1765493443925,-500.0,0.00038457,27]
[398290153,1765493443934,-250.0,0.00038457,27]
[398290155,1765493443944,-500.0,0.00038457,27]
[398290157,1765493443953,-740.38982778,0.00038457,27]
[398290159,1765493443962,-1000.0,0.00038457,27]
[398290161,1765493443972,-151.0,0.00038457,27]
[398290163,1765493443981,-509.67990508,0.00038457,27]
[398290165,1765493443991,-500.0,0.00038457,27]
[398290167,1765493444000,-250.0,0.00038457,27]
[398290169,1765493444010,-767.7842514,0.00038457,27]
[398290171,1765493444020,-363.72354145,0.00038457,27]
[398290174,1765493444031,-151.0,0.00038457,27]
[398290176,1765493444040,-250.0,0.00038457,27]
[398290178,1765493444050,-500.0,0.00038457,27]
[398290180,1765493444059,-796.19226871,0.00038457,27]
[398290182,1765493444069,-211.96483096,0.00038457,27]
[398290184,1765493444079,-250.0,0.00038457,27]
[398290186,1765493444089,-500.0,0.00038457,27]
[398290188,1765493444100,-825.65138265,0.00038457,27]
[398290190,1765493444109,-250.0,0.00038457,27]
[398290192,1765493444119,-500.0,0.00038457,27]
[398290194,1765493444128,-250.0,0.00038457,27]
[398290196,1765493444138,-500.0,0.00038457,27]
[398290198,1765493444148,-250.0,0.00038457,27]
[398290200,1765493444158,-500.0,0.00038457,27]
[398290202,1765493444168,-250.0,0.00038457,27]
[398290204,1765493444177,-500.0,0.00038457,27]
[398290206,1765493444187,-250.0,0.00038457,27]
[398290208,1765493444197,-500.0,0.00038457,27]
[398290210,1765493444207,-250.0,0.00038457,27]
[398290212,1765493444220,-500.0,0.00038457,27]
[398290214,1765493444230,-250.0,0.00038457,27]
[398290216,1765493444240,-500.0,0.00038457,27]
[398290218,1765493444250,-690.62181158,0.00038457,27]
[398290220,1765493444261,-250.0,0.00038457,27]
[398290223,1765493444270,-1000.0,0.00038457,27]
[398290225,1765493444281,-250.0,0.00038457,27]
[398290227,1765493444290,-151.0,0.00038457,27]
[398290229,1765493444299,-1000.0,0.00038457,27]
[398290231,1765493444308,-250.0,0.00038457,27]
[398290233,1765493444319,-151.0,0.00038457,27]
[398290235,1765493444328,-906.23906231,0.00038457,27]
[398290284,1765493445880,-93.76093769,0.00038457,27]
[398290285,1765493445890,-250.0,0.00038457,27]
[398290286,1765493445900,-151.0,0.00038457,27]
[398290287,1765493445909,-250.0,0.00038457,27]
[398290288,1765493445919,-250.0,0.00038457,27]
[398290289,1765493445928,-151.0,0.00038457,27]
[398290290,1765493445938,-250.0,0.00038457,27]
[398290291,1765493445947,-151.0,0.00038457,27]
[398290292,1765493445957,-250.0,0.00038457,27]
[398290293,1765493445967,-151.0,0.00038457,27]
[398290294,1765493445977,-250.0,0.00038457,27]
[398290295,1765493445987,-151.0,0.00038457,27]
[398290296,1765493445997,-250.0,0.00038457,27]
[398290297,1765493446007,-151.0,0.00038457,27]
[398290298,1765493446016,-250.0,0.00038457,27]
[398290299,1765493446027,-151.0,0.00038457,27]
[398290300,1765493446037,-721.12765535,0.00038457,27]
[398290301,1765493446046,-151.0,0.00038457,27]
[398290302,1765493446056,-151.0,0.00038457,27]
[398290303,1765493446065,-1000.0,0.00038457,3]
[398290304,1765493446074,-756.25,0.00038457,30]
[398290305,1765493446084,-2000.0,0.000385,2]
[398290306,1765493446094,-168.0,0.0003852,2]
[398290307,1765493446103,-1000.0,0.00038593,2]
[398290308,1765493446113,-175.63843598,0.00038594,2]
[398290309,1765493446123,-150.0,0.0003861,30]
[398290310,1765493446134,-150.0,0.0003861,30]
[398290311,1765493446144,-297.63,0.00038629,2]
[398290312,1765493446155,-800.0,0.000387,2]
[398290313,1765493446165,-756.25,0.00038731,30]
[398290314,1765493446175,-2743.0149959,0.000388,14]
[398290339,1765493446485,-809.68401322,0.000388,14]
[398290340,1765493446497,-61490.28990435,0.000388,14]
[398290341,1765493446507,-2804.62896267,0.00038968,2]
[398290342,1765493446517,-756.25,0.00039005,30]
[398290343,1765493446526,-211.2,0.00039068,30]
[398290344,1765493446538,-756.25,0.00039279,30]
[398290345,1765493446549,-2804.62896258,0.00039288,2]
[398290346,1765493446558,-243.49,0.00039342,30]
[398290347,1765493446568,-300.24,0.00039452,2]
[398290348,1765493446579,-170.27,0.00039456,2]
[398290349,1765493446588,-150.0,0.00039456,2]
[398290350,1765493446597,-9481.97784446,0.000395,2]
[398290351,1765493446607,-756.25,0.00039553,30]
[398290352,1765493446616,-2804.62896258,0.00039607,2]
[398290353,1765493446628,-368.62,0.00039654,2]
[398290354,1765493446638,-1765.98563429,0.00039755,2]
[398290355,1765493446648,-509.25,0.00039757,120]
[398290356,1765493446657,-703.41,0.00039782,2]
[398290357,1765493446666,-756.25,0.00039827,30]
[398290358,1765493446676,-588.54,0.00039855,2]
[398290359,1765493446686,-175.69,0.00039883,2]
[398290360,1765493446696,-300.0,0.0003989,50]
[398290361,1765493446706,-2500.0,0.000399,2]
[398290362,1765493446715,-2804.62896258,0.00039927,15]
[398290363,1765493446725,-1765.98563425,0.00039987,15]
[398290364,1765493446735,-151.0,0.00039997,14]
[398290365,1765493446744,-500.0,0.00039999,30]
[398290366,1765493446754,-504.35541111,0.00039999,30]
[398290367,1765493446764,-500.0,0.00039999,30]
[398290368,1765493446773,-500.0,0.00039999,30]
[398290369,1765493446783,-500.0,0.00039999,30]
[398290370,1765493446792,-456.94460172,0.00039999,30]
[398290371,1765493446801,-500.0,0.00039999,30]
[398290372,1765493446811,-500.0,0.00039999,30]
[398290373,1765493446820,-500.0,0.00039999,30]
[398290374,1765493446830,-500.0,0.00039999,30]
[398290375,1765493446840,-500.0,0.00039999,30]
[398290376,1765493446850,-500.0,0.00039999,30]
[398290377,1765493446859,-500.0,0.00039999,30]
[398290378,1765493446870,-500.0,0.00039999,30]
[398290379,1765493446879,-240.91209481,0.00039999,30]
[398290380,1765493446890,-500.0,0.00039999,30]
[398290381,1765493446899,-500.0,0.00039999,30]
[398290382,1765493446908,-500.0,0.00039999,30]
[398290383,1765493446919,-500.0,0.00039999,30]
[398290384,1765493446929,-500.0,0.00039999,30]
[398290385,1765493446939,-500.0,0.00039999,30]
[398290386,1765493446948,-500.0,0.00039999,30]
[398290387,1765493446957,-500.0,0.00039999,30]
[398290388,1765493446967,-500.0,0.00039999,30]
[398290389,1765493446976,-500.0,0.00039999,30]
[398290390,1765493446986,-500.0,0.00039999,30]
[398290391,1765493446995,-500.0,0.00039999,30]
[398290392,1765493447004,-500.0,0.00039999,30]
[398290393,1765493447014,-500.0,0.00039999,30]
[398290394,1765493447024,-500.0,0.00039999,30]
[398290395,1765493447033,-239.60076437,0.00039999,30]
[398290396,1765493447043,-500.0,0.00039999,30]
[398290397,1765493447053,-500.0,0.00039999,30]
[398290398,1765493447062,-500.0,0.00039999,30]
[398290399,1765493447072,-500.0,0.00039999,30]
[398290400,1765493447082,-500.0,0.00039999,30]
[398290401,1765493447092,-500.0,0.00039999,2]
[398290402,1765493447102,-994.46,0.00039999,30]
[398290403,1765493447112,-994.46,0.00039999,30]
[398290404,1765493447122,-2984.02362268,0.0004,30]
[398290405,1765493447133,-4946.12072304,0.0004,30]
[398290406,1765493447142,-11615.09647334,0.0004,30]
[398290407,1765493447152,-16896.32572736,0.0004,60]
[398290408,1765493447162,-500.0,0.0004,120]
[398290409,1765493447171,-14718.28679161,0.0004,30]
[398290410,1765493447181,-38005.15824684,0.0004,30]
[398290411,1765493447191,-179555.91119128,0.0004,30]
[398290412,1765493447212,-1468.80163048,0.0004,30]
[398290413,1765493447224,-844.13745707,0.0004,30]
[398290414,1765493447241,-21592.96699669,0.0004,30]
[398290415,1765493447250,-2500.0,0.0004,120]
[398290416,1765493447260,-2500.0,0.0004,120]
[398290417,1765493447270,-150.0,0.0004,60]
[398290418,1765493447280,-643.66,0.0004,120]
[398290419,1765493447289,-655.86,0.0004,120]
[398290420,1765493447299,-12186.22126253,0.0004,30]
[398290421,1765493447311,-1354.57639,0.0004,30]
[398290422,1765493447322,-406.59937078,0.0004,30]
[398290423,1765493447334,-5000.0,0.0004,30]
[398290426,1765493465898,300.0,0.0002002,119]
[398290428,1765493828546,671.867645,7.945e-05,2]
[398290429,1765493849973,-170.39,0.000182,7]
[398290430,1765494010122,250.0,0.00017,2]
[398290436,1765494631977,-150.75,0.00024608,2]
[398290437,1765494631988,-275.95562017,0.00024743,2]
[398290438,1765494631998,-150.61,0.00024843,2]
[398290439,1765494632008,-152.21,0.00025541,2]
[398290440,1765494632018,-150.72,0.00028341,2]
[398290441,1765494632029,-480.8162296,0.00032985,2]
[398290442,1765494632039,-990.30815023,0.000332,2]
[398290443,1765494632051,-9.69184977,0.000332,2]
[398290444,1765494632061,-295.0,0.00035127,2]
[398290445,1765494632071,-166.66,0.00035305,30]
[398290446,1765494632080,-166.66,0.00036048,30]
[398290447,1765494632090,-200.0,0.0003654,2]
[398290448,1765494632100,-166.66,0.00036791,30]
[398290449,1765494632110,-567.94490876,0.000368,2]
[398290453,1765494632511,-432.05509124,0.000368,2]
[398290455,1765494632523,-1248.61226489,0.000369,2]
[398290457,1765494632534,-434.16511273,0.000369,2]
[398290459,1765494632545,-300.0,0.00036998,2]
[398290461,1765494632555,-1200.0,0.00036998,3]
[398290481,1765494632736,-466.66446716,0.00036999,15]
[398290483,1765494632748,-192.35753599,0.00036999,15]
[398290485,1765494632758,-174.49443602,0.00036999,15]
[398290487,1765494632767,-321.58767101,0.00036999,15]
[398290489,1765494632777,-437.0,0.00036999,2]
[398290491,1765494632786,-500.0,0.00036999,2]
[398290493,1765494632796,-500.0,0.00036999,2]
[398290494,1765494632806,-429.32217709,0.00037,2]
[398290496,1765494632819,-1297.87007568,0.00037,2]
[398290498,1765494632830,-1693.63405355,0.00037,2]
[398290499,1765494632842,-569.1863868,0.00037,2]
[398290500,1765494632853,-2750.0,0.00037,2]
[398290501,1765494632869,-2662.04405425,0.00037,2]
[398290502,1765494632882,-2548.73865149,0.00037,2]
[398290503,1765494632897,-6436.20405953,0.00037,2]
[398290504,1765494632908,-784.33997116,0.00037,2]
[398290505,1765494632919,-15249.35130415,0.00037,2]
[398290506,1765494632931,-614.50389,0.00037,2]
[398290507,1765494632951,-2151.7138018,0.00037,2]
[398290508,1765494632963,-1873.48438079,0.00037,2]
[398290509,1765494632975,-387.11639996,0.00037,2]
[398290510,1765494632987,-1153.65769635,0.00037,2]
[398290511,1765494632999,-1023.31953828,0.00037,2]
[398290512,1765494633010,-297.04785907,0.00037,2]
[398290513,1765494633028,-1016.37328688,0.00037,2]
[398290534,1765494638150,-937.5,0.00037,2]
[398290535,1765494638162,-92212.41108615,0.00037,2]
[398290536,1765494638184,-504.0,0.00037,2]
[398290537,1765494638222,-773.64784575,0.00037,2]
[398290544,1765494640169,-1000.0,0.00037,2]
[398290545,1765494640333,-9737.005,0.00037,2]
[398290551,1765494646057,-9732.67492904,0.00037,2]
[398290552,1765494646097,-920.465,0.00037,2]
[398290553,1765494646223,-695.555,0.00037,2]
[398290554,1765494646236,-3286.62288674,0.00037,2]
[398290559,1765495508258,9579.61,0.00018,2]
[398290560,1765495554807,5536.39004615,0.000129,2]
[398290562,1765495637049,3791.75230885,0.0001305,2]
[398290563,1765495637073,1530.11216964,0.0001305,2]
[398290564,1765495668193,3405.75209391,0.00013,2]
[398290565,1765495722688,-273.55218241,0.00016,4]
[398290566,1765495725073,-726.482,0.00016,4]